fUST/lending_fUST_20240529
["ID","MTS","AMOUNT","RATE_DAILY","PERIOD"]
[328165633,1716983235086,-19.1103142,0.00018894,2]
[328165634,1716983235105,-154.84515485,0.00018894,2]
[328165635,1716983235124,-574.74389278,0.00018895,3]
[328165636,1716983244102,-10.86873909,0.00018895,3]
[328165637,1716983244123,-1075.42999247,0.00018996,2]
[328165638,1716983253134,-94.62075163,0.00018996,2]
[328165639,1716983253154,-366.43536638,0.00019071,2]
[328165659,1716983362115,-1000.0,0.00019452,2]
[328165660,1716983362357,-3903.73696863,0.00019452,2]
[328165661,1716983362379,-622.0963912,0.00019453,2]
[328165662,1716983362402,-24900.0,0.00019566,2]
[328165663,1716983362423,-372.50545969,0.0002,2]
[328165664,1716983362444,-269.6675056,0.00020169,2]
[328165665,1716983362465,-169.586474,0.0002027,2]
[328165666,1716983362487,-799.38249379,0.00020913,2]
[328165667,1716983362507,-166.666666,0.00021918,2]
[328165668,1716983362529,-166.666666,0.00022431,2]
[328165669,1716983362549,-166.666666,0.00022944,2]
[328165670,1716983362571,-4699.30029575,0.00023,2]
[328165671,1716983362593,-269.6675056,0.00023416,2]
[328165672,1716983362613,-166.666666,0.00023456,2]
[328165673,1716983362634,-166.666666,0.00023969,2]
[328165674,1716983362654,-200.0,0.0002411,2]
[328165675,1716983362675,-255.318541,0.00024384,2]
[328165676,1716983362695,-676.875,0.00024384,2]
[328165677,1716983362715,-166.666666,0.00024482,2]
[328165678,1716983362738,-500.0,0.00024994,2]
[328165679,1716983362759,-465.60104146,0.00024994,2]
[328165680,1716983362781,-500.0,0.00024994,2]
[328165681,1716983362804,-500.0,0.00024994,2]
[328165682,1716983362825,-380.81082141,0.00024994,2]
[328165683,1716983362847,-500.0,0.00024994,2]
[328165684,1716983362868,-500.0,0.00024994,2]
[328165685,1716983362891,-500.0,0.00024994,2]
[328165686,1716983362913,-570.29923097,0.00024994,2]
[328165687,1716983362939,-500.0,0.00024994,2]
[328165688,1716983362962,-500.0,0.00024994,2]
[328165689,1716983362984,-289.0012965,0.00025033,2]
[328165690,1716983363004,-151.0,0.00025133,5]
[328165772,1716983438489,-151.0,0.00026233,5]
[328165774,1716983438499,-653.38511523,0.00026499,2]
[328165776,1716983438509,-150.0,0.000265,2]
[328165777,1716983438517,-45.448752,0.00026664,2]
[328165778,1716983438529,-224.2187536,0.00026664,2]
[328165779,1716983438537,-151.0,0.00027329,7]
[328165780,1716983438546,-154.84515485,0.00027534,2]
[328165781,1716983438556,-194.0753445,0.0002842,2]
[328165782,1716983438565,-221.89275894,0.00028421,2]
[328165783,1716983438574,-151.0,0.00028425,7]
[328165784,1716983438583,-151.0,0.0002952,7]
[328165785,1716983438592,-4120.36515614,0.00029625,2]
[328165786,1716983438602,-1001.5524108,0.00029829,2]
[328165816,1716983443726,-0.00223423,0.00029829,2]
[328165817,1716983443737,-883.496942,0.00029829,2]
[328165818,1716983443811,-189.71963571,0.00029829,2]
[328165836,1716983449417,273.37336231,9.9e-05,2]
[328165841,1716983457404,273.37336231,9.9e-05,2]
[328165842,1716983458650,164.33784746,0.00020913,2]
[328165844,1716983465404,273.37336231,9.9e-05,2]
[328165845,1716983466532,6926.68809495,0.00020913,2]
[328165846,1716983469231,685.47338776,0.00020913,2]
[328165847,1716983469561,2109.94083119,0.00020913,2]
[328165848,1716983473631,224.70364529,0.00025133,2]
[328165850,1716983487577,773.36662199,9.999e-05,2]
[328165851,1716983491931,922.4720001,0.00014,2]
[328165853,1716983503727,1980.05193058,9.999e-05,2]
[328165854,1716983509224,411.05184853,9.999e-05,2]
[328165857,1716983541161,273.37336231,9.9e-05,2]
[328165870,1716984322658,3377.08356661,9.9e-05,2]
[328165874,1716984432123,-294.37878811,9.997e-05,2]
[328165875,1716984433102,-154.82968734,9.996e-05,2]
[328165876,1716984433122,-391.09459965,9.997e-05,2]
[328165877,1716984433142,-544.48759602,9.998e-05,2]
[328165878,1716984433161,-1191.9764066,0.00018265,2]
[328165879,1716984433180,-835.95507548,0.00019157,2]
[328165880,1716984439110,-412.70094149,0.00019157,2]
[328165881,1716984441169,-861.28481422,0.00019157,2]
[328165882,1716984441191,-3298.2110395,0.0001917,2]
[328165883,1716984441212,-188.0354416,0.00019187,2]
[328165884,1716984441238,-17617.66314205,0.00019242,2]
[328165892,1716984570125,-544.48759602,0.00019241,2]
[328165893,1716984570148,-7282.33685795,0.00019242,2]
[328165894,1716984570169,-164.48151,0.00019771,2]
[328165895,1716984570193,-255.3580576,0.00019892,2]
[328165896,1716984570216,-194.0753445,0.00020802,2]
[328165897,1716984570242,-211.16351278,0.00020803,2]
[328165898,1716984570265,-2108.74133603,0.0002089,2]
[328165899,1716984570290,-221.18,0.00020903,3]
[328165900,1716984570314,-663.54,0.00020903,3]
[328165901,1716984570339,-1839.99905693,0.00020911,2]
[328165902,1716984570363,-156.63274877,0.00020911,2]
[328165903,1716984570385,-685.12941859,0.00020911,2]
[328165904,1716984570409,-193.28861338,0.00020911,2]
[328165905,1716984570434,-500.0,0.00020912,2]
[328165906,1716984570457,-377.49035204,0.00020912,2]
[328165907,1716984570482,-500.0,0.00020912,2]
[328165908,1716984570506,-500.0,0.00020912,2]
[328165909,1716984570532,-500.0,0.00020912,2]
[328165910,1716984570555,-257.93186562,0.00020912,2]
[328165911,1716984570584,-500.0,0.00020912,2]
[328165912,1716984570610,-76.32420454,0.00020912,2]
[328165968,1716984632752,-194.0753445,0.00020911,2]
[328165969,1716984632761,-283.67803753,0.00020911,2]
[328165970,1716984632771,-423.67579546,0.00020912,2]
[328165971,1716984632780,-500.0,0.00020912,2]
[328165972,1716984632790,-500.0,0.00020912,2]
[328165973,1716984632800,-500.0,0.00020912,2]
[328165974,1716984632810,-500.0,0.00020912,2]
[328165975,1716984632819,-500.0,0.00020912,2]
[328165976,1716984632828,-500.0,0.00020912,2]
[328165977,1716984632838,-287.67193512,0.00020912,2]
[328165978,1716984632847,-500.0,0.00020912,2]
[328165979,1716984632856,-500.0,0.00020912,2]
[328165980,1716984632867,-500.0,0.00020912,2]
[328165981,1716984632876,-500.0,0.00020912,2]
[328165982,1716984632885,-500.0,0.00020912,2]
[328165983,1716984632894,-500.0,0.00020912,2]
[328165984,1716984632903,-77.26134042,0.00020912,2]
[328165985,1716984632914,-422.73865958,0.00020912,2]
[328165986,1716984632923,-500.0,0.00020912,2]
[328165988,1716984632932,-469.23774697,0.00020912,2]
[328165990,1716984632943,-30.76225303,0.00020912,2]
[328165992,1716984632952,-294.11549329,0.00020912,2]
[328166010,1716984638727,-205.88450671,0.00020912,2]
[328166011,1716984638737,-500.0,0.00020912,2]
[328166012,1716984638747,-500.0,0.00020912,2]
[328166013,1716984638756,-500.0,0.00020912,2]
[328166014,1716984638767,-500.0,0.00020912,2]
[328166015,1716984638776,-500.0,0.00020912,2]
[328166016,1716984638786,-200.0,0.00020912,2]
[328166017,1716984638796,-500.0,0.00020912,2]
[328166018,1716984638806,-500.0,0.00020912,2]
[328166019,1716984638815,-500.0,0.00020912,2]
[328166020,1716984638825,-500.0,0.00020912,2]
[328166021,1716984638834,-500.0,0.00020912,2]
[328166022,1716984638843,-500.0,0.00020912,2]
[328166023,1716984638853,-500.0,0.00020912,2]
[328166024,1716984638863,-500.0,0.00020912,2]
[328166025,1716984638873,-500.0,0.00020912,2]
[328166026,1716984638883,-500.0,0.00020912,2]
[328166027,1716984638892,-500.0,0.00020912,2]
[328166028,1716984638901,-281.17060043,0.00020912,2]
[328166029,1716984638910,-500.0,0.00020912,2]
[328166030,1716984638920,-1789.27077643,0.00020912,7]
[328166031,1716984638929,-71.96996728,0.00020913,2]
[328166032,1716984638942,-79928.03003272,0.00020913,2]
[328166033,1716984638951,-330.29329239,0.00021818,2]
[328166034,1716984638960,-166.666666,0.00021918,2]
[328166035,1716984638969,-442.36,0.00022273,3]
[328166036,1716984638978,-166.666666,0.00022431,2]
[328166037,1716984638987,-166.666666,0.00022944,2]
[328166038,1716984638997,-166.666666,0.00023456,2]
[328166039,1716984639006,-166.666666,0.00023969,2]
[328166040,1716984639014,-680.531251,0.00024384,2]
[328166041,1716984639024,-242.552613,0.00024384,2]
[328166042,1716984639033,-251.91940698,0.000244,2]
[328166043,1716984639042,-251.91940696,0.000244,2]
[328166044,1716984639052,-251.91940696,0.000244,2]
[328166045,1716984639061,-166.666666,0.00024482,2]
[328166046,1716984639070,-401.35997023,0.00025,2]
[328166047,1716984639080,-150.0,0.000265,2]
[328166048,1716984639089,-7054.01953135,0.00027,2]
[328166049,1716984639099,-633.48189625,0.00028464,2]
[328166050,1716984639108,-927.58017558,0.00028625,2]
[328166051,1716984639118,-150.0,0.0002948,2]
[328166052,1716984639129,-151.0,0.00029531,7]
[328166053,1716984639139,-3822.73438145,0.00029558,2]
[328166054,1716984639148,-164.48151,0.00029656,2]
[328166055,1716984639158,-282.0,0.000299,2]
[328166056,1716984639168,-160.0,0.000299,2]
[328166057,1716984639178,-647.33121107,0.00029998,2]
[328166058,1716984639188,-154.84515485,0.00029999,2]
[328166059,1716984639198,-1265.85343059,0.00029999,7]
[328166060,1716984639207,-12756.45188339,0.0003,2]
[328166061,1716984639218,-3026.97335961,0.0003,3]
[328166062,1716984639228,-382.0,0.0003,2]
[328166063,1716984639238,-1717.20245559,0.00030132,4]
[328166064,1716984639247,-330.53935918,0.00030132,4]
[328166065,1716984639257,-295.86564037,0.00030133,4]
[328166066,1716984639266,-1527.98559844,0.00030134,7]
[328166067,1716984639276,-30639.11327347,0.00030134,4]
[328166068,1716984639288,-997.70075808,0.00030134,4]
[328166069,1716984639300,-68.47625771,0.00030134,4]
[328166070,1716984639313,-269.51984896,0.00030134,4]
[328166071,1716984639324,-177.00478705,0.00030134,4]
[328166072,1716984639333,-164.26996896,0.00030134,4]
[328166073,1716984639343,-3065.00544058,0.00030134,4]
[328166074,1716984639354,-2244.23912081,0.00030134,4]
[328166075,1716984639366,-32455.52518132,0.00030134,4]
[328166082,1716984641729,-330.29329238,0.00023872,2]
[328166084,1716984641738,-7642.74018423,0.00030126,3]
[328166085,1716984641842,-438.26981577,0.00030126,3]
[328166086,1716984641851,-6336.6400442,0.00030134,4]
[328166108,1716984643983,-330.29329238,0.00025926,2]
[328166109,1716984643992,-302.20670787,0.00030134,4]
[328166419,1716984647351,-330.29329238,0.0002798,2]
[328166420,1716984647360,-330.29329238,0.00030034,2]
[328166421,1716984647369,-18122.22851105,0.00030134,4]
[328166422,1716984647378,-15539.3536135,0.00030134,4]
[328166423,1716984647388,-283.93262645,0.00030134,4]
[328166424,1716984647398,-311.159852,0.00030134,2]
[328166425,1716984647407,-311.159852,0.00030134,2]
[328166426,1716984647415,-159.600637,0.00030134,2]
[328166427,1716984647424,-151.0,0.00030134,2]
[328166428,1716984647433,-155.412365,0.00030134,2]
[328166429,1716984647442,-262.112192,0.00030134,2]
[328166430,1716984647451,-262.112192,0.00030134,2]
[328166431,1716984647460,-151.0,0.00030134,2]
[328166432,1716984647468,-151.0,0.00030134,2]
[328166433,1716984647477,-160.973874,0.00030134,2]
[328166434,1716984647486,-151.0,0.00030134,2]
[328166435,1716984647495,-209.622999,0.00030134,2]
[328166436,1716984647504,-209.622999,0.00030134,2]
[328166437,1716984647513,-151.0,0.00030134,2]
[328166438,1716984647522,-857.622224,0.00030134,2]
[328166439,1716984647531,-857.622224,0.00030134,2]
[328166440,1716984647539,-232.807367,0.00030134,2]
[328166441,1716984647548,-151.0,0.00030134,2]
[328166442,1716984647557,-190.741578,0.00030134,2]
[328166443,1716984647566,-847.867157,0.00030134,2]
[328166444,1716984647575,-847.867157,0.00030134,2]
[328166445,1716984647584,-2577.57498,0.00030134,2]
[328166446,1716984647593,-2577.57498,0.00030134,2]
[328166447,1716984647602,-4472.115105,0.00030134,2]
[328166448,1716984647611,-4472.115105,0.00030134,2]
[328166449,1716984647621,-151.0,0.00030134,2]
[328166450,1716984647630,-247.85838,0.00030134,2]
[328166451,1716984647639,-151.0,0.00030134,2]
[328166452,1716984647648,-247.85838,0.00030134,2]
[328166453,1716984647657,-513.049417,0.00030134,2]
[328166454,1716984647666,-513.049417,0.00030134,2]
[328166455,1716984647675,-151.0,0.00030134,2]
[328166456,1716984647684,-151.0,0.00030134,2]
[328166457,1716984647693,-934.959772,0.00030134,2]
[328166458,1716984647702,-934.959772,0.00030134,2]
[328166459,1716984647711,-671.718159,0.00030134,2]
[328166460,1716984647721,-671.718159,0.00030134,2]
[328166461,1716984647730,-351.76658458,0.00030135,4]
[328166462,1716984647741,-6286.3485562,0.00030135,2]
[328166463,1716984647753,-247.85838,0.00030135,2]
[328166464,1716984647762,-247.85838,0.00030135,2]
[328166465,1716984647771,-151.0,0.00030136,2]
[328166466,1716984647780,-151.0,0.00030136,2]
[328166467,1716984647790,-501.68562485,0.00030136,4]
[328166468,1716984647799,-501.62569163,0.00030136,4]
[328166469,1716984647808,-578.87410953,0.00030136,4]
[328166470,1716984647817,-495.53466221,0.00030136,4]
[328166471,1716984647826,-504.62782839,0.00030136,4]
[328166472,1716984647835,-500.0,0.00030136,4]
[328166473,1716984647844,-503.54556447,0.00030136,4]
[328166474,1716984647853,-501.74478104,0.00030136,4]
[328166475,1716984647862,-504.83571561,0.00030136,4]
[328166476,1716984647871,-504.11614555,0.00030136,4]
[328166477,1716984647880,-509.47440859,0.00030136,4]
[328166478,1716984647889,-507.97558312,0.00030136,4]
[328166479,1716984647898,-500.0,0.00030136,4]
[328166480,1716984647906,-508.25312115,0.00030136,4]
[328166481,1716984647915,-500.80071715,0.00030136,4]
[328166482,1716984647925,-151.0,0.00030136,2]
[328166483,1716984647934,-180.814004,0.00030136,2]
[328166484,1716984647942,-82.24308207,0.00030136,4]
[328166485,1716984647959,-419.06767493,0.00030136,4]
[328166486,1716984647968,-250.0,0.00030136,4]
[328166487,1716984647977,-557.30382206,0.00030136,4]
[328166488,1716984647986,-505.83302534,0.00030136,4]
[328166489,1716984647995,-505.69274832,0.00030136,4]
[328166490,1716984648004,-500.0,0.00030136,4]
[328166491,1716984648012,-382.55102165,0.00030136,4]
[328166492,1716984648021,-504.80355456,0.00030136,4]
[328166493,1716984648031,-500.0,0.00030136,4]
[328166494,1716984648039,-501.77170878,0.00030136,4]
[328166495,1716984648048,-503.74711031,0.00030136,4]
[328166496,1716984648057,-500.0,0.00030136,4]
[328166497,1716984648066,-150.0,0.00030136,4]
[328166498,1716984648075,-311.159852,0.00030136,2]
[328166499,1716984648084,-311.159852,0.00030136,2]
[328166500,1716984648093,-311.159852,0.00030136,2]
[328166501,1716984648102,-311.159852,0.00030136,2]
[328166502,1716984648111,-311.159852,0.00030136,2]
[328166503,1716984648120,-311.159852,0.00030136,2]
[328166504,1716984648130,-311.159852,0.00030136,2]
[328166505,1716984648139,-311.159852,0.00030136,2]
[328166506,1716984648148,-311.159852,0.00030136,2]
[328166507,1716984648157,-311.159852,0.00030136,2]
[328166508,1716984648166,-311.159852,0.00030136,2]
[328166509,1716984648175,-311.159852,0.00030136,2]
[328166510,1716984648184,-311.159852,0.00030136,2]
[328166511,1716984648194,-311.159852,0.00030136,2]
[328166512,1716984648203,-311.159852,0.00030136,2]
[328166513,1716984648211,-311.159852,0.00030136,2]
[328166514,1716984648220,-311.159852,0.00030136,2]
[328166515,1716984648229,-311.159842,0.00030136,2]
[328166516,1716984648238,-151.0,0.00030136,2]
[328166517,1716984648247,-151.0,0.00030136,2]
[328166518,1716984648256,-151.0,0.00030136,2]
[328166519,1716984648265,-778.18166,0.00030136,2]
[328166520,1716984648274,-151.0,0.00030136,2]
[328166521,1716984648283,-778.18166,0.00030136,2]
[328166522,1716984648291,-229.24889083,0.00030136,2]
[328166523,1716984660423,999.999998,9.999e-05,2]
[328166524,1716984660445,177.87747218,9.999e-05,2]
[328166525,1716984660464,971.0857507,9.999e-05,2]
[328166531,1716985627114,-551.40633265,9.998e-05,2]
[328166532,1716985627134,-154.82968734,9.998e-05,2]
[328166533,1716985627154,-489.09571993,9.999e-05,2]
[328166534,1716985627175,-224.73843168,9.999e-05,2]
[328166535,1716985627197,-338.98521984,9.999e-05,2]
[328166536,1716985631162,-1000.0,9.999e-05,2]
[328166537,1716985634230,-159.22743012,9.999e-05,2]
[328166538,1716985639097,-675.8282034,9.999e-05,2]
[328166539,1716985639117,-156.63274877,0.00019205,2]
[328166540,1716985639138,-584.22371267,0.00019206,2]
[328166541,1716985640172,-101.24967509,0.00019206,2]
[328166542,1716985640194,-284.01585024,0.00019207,2]
[328166543,1716985640216,-35.95172667,0.00019219,2]
[328166560,1716985745103,-283.67803753,0.00019218,2]
[328166561,1716985745122,-13951.40188536,0.00019219,2]
[328166562,1716985749133,-5287.68270741,0.00019219,2]
[328166563,1716985749155,-3211.3206519,0.0001922,2]
[328166564,1716985749176,-399.3819498,0.00019651,2]
[328166565,1716985749196,-194.0753606,0.0002,2]
[328166566,1716985749223,-1302.40031541,0.00021915,2]
[328166567,1716985749244,-166.666666,0.00021918,2]
[328166568,1716985749266,-166.666666,0.00022431,2]
[328166569,1716985749288,-291.96717459,0.00022601,2]
[328166570,1716985749310,-166.666666,0.00022944,2]
[328166571,1716985749332,-166.666666,0.00023456,2]
[328166572,1716985749353,-166.666666,0.00023969,2]
[328166573,1716985749373,-750.0,0.00024384,2]
[328166574,1716985749394,-158.662089,0.00024384,2]
[328166575,1716985749416,-166.666666,0.00024482,2]
[328166645,1716985838012,-150.0,0.000265,2]
[328166646,1716985838023,-283.67803753,0.00028511,2]
[328166647,1716985838032,-194.0753606,0.00028512,2]
[328166648,1716985838041,-621.34818963,0.00028513,2]
[328166649,1716985838051,-151.0,0.00029579,7]
[328166650,1716985838060,-151.0,0.00029579,7]
[328166651,1716985838069,-267.64867022,0.00029895,2]
[328166652,1716985838079,-4229.78307947,0.00029923,2]
[328166653,1716985838088,-299.03863799,0.00029926,2]
[328166654,1716985838098,-2601.34722858,0.0003,2]
[328166655,1716985838109,-998.38171387,0.0003,2]
[328166656,1716985838120,-1076.92876666,0.0003,2]
[328166657,1716985838132,-8079.79417428,0.0003,2]
[328166658,1716985838141,-429.28292388,0.0003,3]
[328166659,1716985838150,-324.82794241,0.00030025,2]
[328166660,1716985838159,-500.0,0.00030025,2]
[328166661,1716985838169,-500.0,0.00030025,2]
[328166662,1716985838178,-500.0,0.00030025,2]
[328166663,1716985838187,-500.0,0.00030025,2]
[328166664,1716985838197,-500.0,0.00030025,2]
[328166665,1716985838205,-500.0,0.00030025,2]
[328166666,1716985838215,-500.0,0.00030025,2]
[328166667,1716985838223,-500.0,0.00030025,2]
[328166668,1716985838233,-500.0,0.00030025,2]
[328166669,1716985838242,-500.0,0.00030025,2]
[328166670,1716985838251,-500.0,0.00030025,2]
[328166671,1716985838260,-317.82701669,0.00030025,2]
[328166672,1716985838268,-500.0,0.00030025,2]
[328166673,1716985838278,-6450.09573305,0.00030026,3]
[328166674,1716985841194,-284.08426695,0.00030026,3]
[328166675,1716985841204,-5611.81,0.00030026,3]
[328166676,1716985841213,-4676.51,0.00030026,3]
[328166677,1716985841222,-3897.09,0.00030026,3]
[328166678,1716985841233,-551.01844882,0.00030034,4]
[328166679,1716985841242,-156.49531397,0.00030034,4]
[328166680,1716985841251,-283.73484068,0.00030035,4]
[328166681,1716985841260,-392.78872478,0.00030035,4]
[328166682,1716985841269,-590.39972927,0.00030036,2]
[328166683,1716985841279,-17499.86744044,0.00030036,5]
[328166684,1716985841291,-3261.15788286,0.00030036,5]
[328166685,1716985841304,-18450.74428883,0.00030036,5]
[328166686,1716985841315,-49676.23038787,0.00030036,5]
[328166687,1716985841324,-2000.0,0.00030036,2]
[328166688,1716985841333,-278.0,0.000301,2]
[328166689,1716985841342,-160.0,0.000301,2]
[328166690,1716985841351,-164.33784746,0.00030132,4]
[328166691,1716985841360,-281.91842462,0.00030133,4]
[328166692,1716985841489,-410.85900029,0.00030134,4]
[328166693,1716985841499,-2006.40754201,0.00030134,4]
[328166694,1716985841508,-415.44730318,0.00030134,4]
[328166695,1716985841517,-281.81267794,0.00030134,4]
[328166696,1716985841526,-1325.73540606,0.00030134,4]
[328166697,1716985841535,-158.67086264,0.00030134,4]
[328166698,1716985841544,-154.98135029,0.00030134,4]
[328166699,1716985841553,-154.97857721,0.00030134,4]
[328166700,1716985841561,-181.63857615,0.00030134,4]
[328166701,1716985841570,-194.63259414,0.00030134,4]
[328166702,1716985841579,-1870.13098848,0.00030134,4]
[328166703,1716985841588,-460.53181887,0.00030134,4]
[328166704,1716985841597,-155.00647882,0.00030134,4]
[328166705,1716985841607,-395.68345474,0.00030134,4]
[328166706,1716985841616,-836.06034281,0.00030134,4]
[328166707,1716985841625,-239.00629442,0.00030134,4]
[328166708,1716985841634,-282.85239805,0.00030134,4]
[328166709,1716985841643,-39359.00600469,0.00030134,4]
[328166710,1716985841652,-720.62329532,0.00030134,4]
[328166711,1716985841661,-772.8946628,0.00030134,4]
[328166712,1716985841670,-156.5200847,0.00030134,4]
[328166713,1716985841679,-298.41160111,0.00030134,4]
[328166714,1716985841688,-205.4451502,0.00030135,7]
[328166722,1716985846309,-998.82083993,0.00030126,3]
[328166724,1716985846322,-1721.4188608,0.00030126,3]
[328166728,1716985853947,3299.90264605,0.00020913,2]
[328166729,1716985869638,154.82968734,9.999e-05,2]
[328166746,1716986590355,-194.0753606,0.00020795,2]
[328166747,1716986590378,-283.67803753,0.00020796,2]
[328166748,1716986590402,-24549.4,0.000208,2]
[328166749,1716986590425,-280.70390234,0.00020812,2]
[328166750,1716986590448,-324.82794241,0.00020912,2]
[328166751,1716986590474,-500.0,0.00020912,2]
[328166752,1716986590500,-500.0,0.00020912,2]
[328166753,1716986590526,-500.0,0.00020912,2]
[328166754,1716986590552,-256.71173949,0.00020912,2]
[328166755,1716986590576,-500.0,0.00020912,2]
[328166756,1716986590603,-500.0,0.00020912,2]
[328166757,1716986590627,-500.0,0.00020912,2]
[328166758,1716986590651,-500.0,0.00020912,2]
[328166759,1716986590676,-500.0,0.00020912,2]
[328166760,1716986590701,-500.0,0.00020912,2]
[328166761,1716986590724,-500.0,0.00020912,2]
[328166762,1716986590748,-500.0,0.00020912,2]
[328166763,1716986590773,-500.0,0.00020912,2]
[328166764,1716986590797,-500.0,0.00020912,2]
[328166765,1716986590821,-500.0,0.00020912,2]
[328166766,1716986590845,-500.0,0.00020912,2]
[328166767,1716986590868,-39233.04429215,0.00020913,2]
[328166769,1716986829117,-179.91566355,0.00024284,2]
[328166770,1716986829144,-281.14045446,0.00024384,2]
[328166771,1716986829181,-431.35954554,0.00024384,2]
[328166772,1716986829205,-158.662089,0.00024384,2]
[328166773,1716986829231,-58.31260197,0.00026097,2]
[328166774,1716986845241,-194.0753606,0.00025204,2]
[328166775,1716986845264,-108.35406403,0.00026097,2]
[328166776,1716986845287,-283.67803753,0.00026498,2]
[328166777,1716986845311,-265.0,0.000265,4]
[328166778,1716986845333,-1566.93459435,0.000265,2]
[328166797,1716986963115,-185.925243,0.000265,2]
[328166803,1716987006803,273.37336231,9.9e-05,2]
[328166854,1716987032464,-194.0753606,0.00026499,2]
[328166856,1716987032474,-283.67803753,0.00026499,2]
[328166858,1716987032483,-5458.39657018,0.000265,2]
[328166916,1716987033052,-383.7998292,0.000265,2]
[328166939,1716987038351,-2404.94376327,0.000265,2]
[328166940,1716987038362,-166.666666,0.00026809,2]
[328166941,1716987038371,-500.0,0.00027,2]
[328166942,1716987038381,-376.4353664,0.00027072,2]
[328166943,1716987038391,-151.0,0.00027472,7]
[328166944,1716987038401,-404.0,0.000275,5]
[328166945,1716987038410,-166.666666,0.0002752,2]
[328166946,1716987038420,-166.666666,0.00028232,2]
[328166947,1716987038429,-151.0,0.00028547,7]
[328166948,1716987038439,-151.0,0.00028547,7]
[328166949,1716987038449,-166.666666,0.00028943,2]
[328166950,1716987038459,-2532.29687394,0.000295,2]
[328166951,1716987038468,-153.0,0.00029606,2]
[328166952,1716987038478,-153.0,0.00029606,2]
[328166953,1716987038487,-153.0,0.00029606,2]
[328166954,1716987038497,-153.0,0.00029606,2]
[328166956,1716987038507,-153.0,0.00029606,2]
[328166958,1716987038516,-153.0,0.00029606,2]
[328166960,1716987038525,-153.0,0.00029606,2]
[328166962,1716987038535,-153.0,0.00029606,2]
[328166964,1716987038544,-153.0,0.00029606,2]
[328166966,1716987038553,-151.0,0.00029623,7]
[328166967,1716987038563,-151.0,0.00029623,7]
[328166969,1716987038572,-166.666666,0.00029655,2]
[328166971,1716987038582,-4229.78307947,0.00029784,2]
[328166972,1716987038591,-429.28292388,0.0003,3]
[328166973,1716987038601,-6904.48,0.00030026,3]
[328166974,1716987038611,-5753.73,0.00030026,3]
[328166975,1716987038621,-4794.77,0.00030026,3]
[328166976,1716987038631,-155.50775236,0.00030034,4]
[328166977,1716987038640,-221.89275894,0.00030034,4]
[328166978,1716987038650,-942.81863451,0.00030034,4]
[328166979,1716987038660,-500.0,0.00030034,2]
[328166980,1716987038669,-327.01352184,0.00030034,2]
[328166981,1716987038679,-500.0,0.00030034,2]
[328166982,1716987038688,-500.0,0.00030034,2]
[328166983,1716987038699,-500.0,0.00030034,2]
[328166984,1716987038709,-281.69123013,0.00030035,4]
[328166985,1716987038719,-87187.5214371,0.00030036,5]
[328166986,1716987038728,-2000.0,0.00030036,2]
[328166987,1716987038737,-160.0,0.000301,2]
[328166988,1716987038747,-10027.78822046,0.00030134,4]
[328166989,1716987038756,-685.35873137,0.00030134,4]
[328166990,1716987038766,-181.63857615,0.00030134,4]
[328166991,1716987038776,-5642.87360601,0.00030134,4]
[328166992,1716987038786,-4782.96698687,0.00030135,5]
[328166993,1716987038795,-661.27022412,0.00030136,7]
[328166994,1716987038805,-28.8075917,0.00030136,7]
[328166999,1716987041671,-865.82779652,0.00030136,7]
[328167000,1716987041680,-500.0,0.00030136,4]
[328167001,1716987041691,-151.0,0.00030136,2]
[328167002,1716987041704,-151.0,0.00030136,2]
[328167003,1716987041713,-151.0,0.00030136,2]
[328167004,1716987041724,-151.0,0.00030136,2]
[328167005,1716987041734,-151.0,0.00030136,2]
[328167006,1716987041744,-151.0,0.00030136,2]
[328167007,1716987041753,-151.0,0.00030136,2]